[Event "Early-Titled-Tuesday-Blitz-April-23-2024"]
[Site "Chess.com"]
[Date "2024.04.23"]
[Round "3"]
[White "adapodadei"]
[Black "michaelq2d5"]
[Result "1/2-1/2"]
[WhiteElo "2723"]
[BlackElo "2931"]
[TimeControl "180+1"]
[EndTime "8:26:36 PDT"]
[Termination "Game drawn by repetition"]

1. Nf3 {[%clk 0:03:00.9]} 1... d5 {[%clk 0:03:00.3]} 2. e3 {[%clk 0:02:59.8]}
2... Nf6 {[%clk 0:03:00.7]} 3. c4 {[%clk 0:03:00.1]} 3... e6 {[%clk 0:03:01.4]}
4. Nc3 {[%clk 0:03:00.1]} 4... a6 {[%clk 0:03:01.7]} 5. b3 {[%clk 0:03:00]} 5...
b6 {[%clk 0:03:02.1]} 6. Bb2 {[%clk 0:03:00.1]} 6... Bb7 {[%clk 0:03:02.6]} 7.
d4 {[%clk 0:02:59.4]} 7... Nbd7 {[%clk 0:03:02.8]} 8. Be2 {[%clk 0:02:59.3]}
8... Bd6 {[%clk 0:03:03.1]} 9. O-O {[%clk 0:02:57]} 9... O-O {[%clk 0:03:03.3]}
10. Qc2 {[%clk 0:02:57]} 10... Rc8 {[%clk 0:03:00.2]} 11. Rad1 {[%clk
0:02:56.3]} 11... Qe7 {[%clk 0:03:00.3]} 12. Na4 {[%clk 0:02:41.4]} 12... Rfd8
{[%clk 0:02:42.9]} 13. Ne5 {[%clk 0:02:39.4]} 13... dxc4 {[%clk 0:02:07.6]} 14.
bxc4 {[%clk 0:02:32.9]} 14... Bxe5 {[%clk 0:02:06.4]} 15. dxe5 {[%clk 0:02:33]}
15... Ne4 {[%clk 0:02:07.1]} 16. Bd3 {[%clk 0:02:14.2]} 16... Ndc5 {[%clk
0:01:24]} 17. Ba3 {[%clk 0:01:50.4]} 17... Qh4 {[%clk 0:00:50.2]} 18. Nxc5
{[%clk 0:01:36.9]} 18... Nxc5 {[%clk 0:00:50.5]} 19. Bxc5 {[%clk 0:01:36.4]}
19... Bxg2 {[%clk 0:00:38.8]} 20. Kxg2 {[%clk 0:01:27.5]} 20... Qg4+ {[%clk
0:00:39]} 21. Kh1 {[%clk 0:01:28]} 21... Qf3+ {[%clk 0:00:39.9]} 22. Kg1 {[%clk
0:01:28.6]} 22... Qg4+ {[%clk 0:00:40.8]} 23. Kh1 {[%clk 0:01:29.2]} 23... Qf3+
{[%clk 0:00:41.7]} 24. Kg1 {[%clk 0:01:29.8]} 24... Qg4+ {[%clk 0:00:42.6]} 25.
Kh1 {[%clk 0:01:30.2]} 1/2-1/2

[Event "Early-Titled-Tuesday-Blitz-April-23-2024"]
[Site "Chess.com"]
[Date "2024.04.23"]
[Round "3"]
[White "soupeOchoux"]
[Black "ChEsper99"]
[Result "1-0"]
[WhiteElo "2414"]
[BlackElo "2241"]
[TimeControl "180+1"]
[EndTime "8:26:37 PDT"]
[Termination "soupeOchoux won by resignation"]

1. d4 {[%clk 0:03:00.9]} 1... d5 {[%clk 0:02:58.6]} 2. c4 {[%clk 0:03:00.1]}
2... c6 {[%clk 0:02:58.2]} 3. Nf3 {[%clk 0:03:00.5]} 3... Nf6 {[%clk 0:02:58.5]}
4. Nc3 {[%clk 0:03:00.1]} 4... e6 {[%clk 0:02:55.9]} 5. Qd3 {[%clk 0:02:59.7]}
5... dxc4 {[%clk 0:02:52.1]} 6. Qxc4 {[%clk 0:03:00.6]} 6... Be7 {[%clk
0:02:43.1]} 7. e4 {[%clk 0:03:00.1]} 7... O-O {[%clk 0:02:42.7]} 8. Bd3 {[%clk
0:02:58.9]} 8... Nbd7 {[%clk 0:02:37.9]} 9. h4 {[%clk 0:02:57.7]} 9... Ng4
{[%clk 0:02:25.4]} 10. e5 {[%clk 0:02:55.1]} 10... Nb6 {[%clk 0:02:19.3]} 11.
Qb3 {[%clk 0:02:54.9]} 11... Nd5 {[%clk 0:02:12.5]} 12. Ne4 {[%clk 0:02:54.3]}
12... f5 {[%clk 0:02:10.2]} 13. exf6 {[%clk 0:02:49.8]} 13... Ngxf6 {[%clk
0:02:09.7]} 14. Bg5 {[%clk 0:02:45.4]} 14... Nxe4 {[%clk 0:01:57.7]} 15. Bxe4
{[%clk 0:02:44]} 15... h6 {[%clk 0:01:52.7]} 16. Bxe7 {[%clk 0:02:43.4]} 16...
Qxe7 {[%clk 0:01:53.6]} 17. O-O-O {[%clk 0:02:42.6]} 17... a5 {[%clk 0:01:50.5]}
18. a3 {[%clk 0:02:40.7]} 18... a4 {[%clk 0:01:45.1]} 19. Qc4 {[%clk 0:02:37.4]}
19... Bd7 {[%clk 0:01:39.9]} 20. Bc2 {[%clk 0:02:36.8]} 20... b5 {[%clk
0:01:23.9]} 21. Qd3 {[%clk 0:02:36.7]} 21... Nf6 {[%clk 0:01:24.3]} 22. g4
{[%clk 0:02:36.5]} 22... Qd6 {[%clk 0:01:13.1]} 23. g5 {[%clk 0:02:34.6]} 23...
hxg5 {[%clk 0:01:09.1]} 24. hxg5 {[%clk 0:02:35.5]} 24... Qf4+ {[%clk
0:01:09.5]} 25. Kb1 {[%clk 0:02:35.3]} 25... Ng4 {[%clk 0:00:57.5]} 26. Qh7+
{[%clk 0:02:19.7]} 26... Kf7 {[%clk 0:00:57.2]} 27. Bg6+ {[%clk 0:02:10.4]}
27... Ke7 {[%clk 0:00:57.3]} 28. Qxg7+ {[%clk 0:02:07.4]} 28... Kd6 {[%clk
0:00:53.7]} 29. Ne5 {[%clk 0:02:07]} 29... Rad8 {[%clk 0:00:41.6]} 30. Nxg4
{[%clk 0:01:48.4]} 30... Qxg4 {[%clk 0:00:41.4]} 31. Qe5+ {[%clk 0:01:48.4]}
31... Ke7 {[%clk 0:00:40.1]} 32. Rh7+ {[%clk 0:01:49]} 1-0

[Event "Early-Titled-Tuesday-Blitz-April-23-2024"]
[Site "Chess.com"]
[Date "2024.04.23"]
[Round "3"]
[White "AndresDelgado77"]
[Black "stratacticos"]
[Result "0-1"]
[WhiteElo "2322"]
[BlackElo "1853"]
[TimeControl "180+1"]
[EndTime "8:26:43 PDT"]
[Termination "stratacticos won on time"]

1. e3 {[%clk 0:02:58.9]} 1... c5 {[%clk 0:02:58.8]} 2. c4 {[%clk 0:02:48.8]}
2... Nc6 {[%clk 0:02:57.9]} 3. Nc3 {[%clk 0:01:51.3]} 3... e5 {[%clk 0:02:55.5]}
4. g3 {[%clk 0:01:51.1]} 4... Nf6 {[%clk 0:02:53.5]} 5. Bg2 {[%clk 0:01:51.3]}
5... Be7 {[%clk 0:02:53.3]} 6. Nge2 {[%clk 0:01:41.7]} 6... O-O {[%clk
0:02:51.6]} 7. O-O {[%clk 0:01:41.4]} 7... d6 {[%clk 0:02:51.2]} 8. b3 {[%clk
0:01:35.8]} 8... a6 {[%clk 0:02:49.8]} 9. h3 {[%clk 0:01:28.9]} 9... Be6 {[%clk
0:02:47.8]} 10. d4 {[%clk 0:01:20.3]} 10... exd4 {[%clk 0:02:41.4]} 11. exd4
{[%clk 0:00:41.6]} 11... cxd4 {[%clk 0:02:38.8]} 12. Nxd4 {[%clk 0:00:28.1]}
12... Nxd4 {[%clk 0:02:37.4]} 13. Qxd4 {[%clk 0:00:23.6]} 13... Rb8 {[%clk
0:02:37.3]} 14. Rd1 {[%clk 0:00:22.7]} 14... b5 {[%clk 0:02:36.6]} 15. cxb5
{[%clk 0:00:22.2]} 15... axb5 {[%clk 0:02:36.4]} 16. Bb2 {[%clk 0:00:23.1]}
16... b4 {[%clk 0:02:09.4]} 17. Nd5 {[%clk 0:00:19.1]} 17... Bxd5 {[%clk
0:02:08.6]} 18. Bxd5 {[%clk 0:00:18.5]} 18... Qc8 {[%clk 0:01:59.2]} 19. Rac1
{[%clk 0:00:07.9]} 19... Qxh3 {[%clk 0:01:58.3]} 0-1

[Event "Early-Titled-Tuesday-Blitz-April-23-2024"]
[Site "Chess.com"]
[Date "2024.04.23"]
[Round "3"]
[White "Kiborg95"]
[Black "Attacker88"]
[Result "1-0"]
[WhiteElo "2847"]
[BlackElo "2384"]
[TimeControl "180+1"]
[EndTime "8:26:46 PDT"]
[Termination "Kiborg95 won on time"]

1. e4 {[%clk 0:02:54]} 1... c5 {[%clk 0:02:59.2]} 2. Nc3 {[%clk 0:02:54.1]} 2...
Nc6 {[%clk 0:02:55.7]} 3. Nge2 {[%clk 0:02:54.4]} 3... g6 {[%clk 0:02:52.8]} 4.
d4 {[%clk 0:02:54.7]} 4... cxd4 {[%clk 0:02:52.6]} 5. Nxd4 {[%clk 0:02:55.6]}
5... Bg7 {[%clk 0:02:52.9]} 6. Be3 {[%clk 0:02:54.5]} 6... Nf6 {[%clk
0:02:49.5]} 7. Bc4 {[%clk 0:02:54.9]} 7... O-O {[%clk 0:02:45.7]} 8. Bb3 {[%clk
0:02:45.2]} 8... d6 {[%clk 0:02:26.9]} 9. f3 {[%clk 0:02:44.8]} 9... Bd7 {[%clk
0:02:04.5]} 10. h4 {[%clk 0:02:44.6]} 10... Ne5 {[%clk 0:01:47.4]} 11. Qd2
{[%clk 0:02:31.7]} 11... Rc8 {[%clk 0:01:38.4]} 12. h5 {[%clk 0:02:20.4]} 12...
Nxh5 {[%clk 0:01:31.5]} 13. Bh6 {[%clk 0:02:20.2]} 13... Qa5 {[%clk 0:01:12.6]}
14. Bxg7 {[%clk 0:02:17.1]} 14... Kxg7 {[%clk 0:01:11]} 15. O-O-O {[%clk
0:02:17.8]} 15... Rxc3 {[%clk 0:00:20.2]} 16. bxc3 {[%clk 0:02:18.7]} 16... Rc8
{[%clk 0:00:18.5]} 17. Kb2 {[%clk 0:02:18.4]} 17... Qc5 {[%clk 0:00:11.8]} 18.
g4 {[%clk 0:01:59.7]} 18... Nf6 {[%clk 0:00:11.7]} 19. g5 {[%clk 0:02:00.4]}
19... Nh5 {[%clk 0:00:11.9]} 20. f4 {[%clk 0:02:01]} 20... Ng4 {[%clk
0:00:07.5]} 21. Rh4 {[%clk 0:01:55.8]} 21... a5 {[%clk 0:00:05.6]} 22. a4 {[%clk
0:01:55.6]} 22... b5 {[%clk 0:00:02.4]} 23. axb5 {[%clk 0:01:55.9]} 1-0

[Event "Early-Titled-Tuesday-Blitz-April-23-2024"]
[Site "Chess.com"]
[Date "2024.04.23"]
[Round "3"]
[White "Russian_berezka"]
[Black "Antipov_Mikhail_Al"]
[Result "0-1"]
[WhiteElo "2629"]
[BlackElo "2885"]
[TimeControl "180+1"]
[EndTime "8:26:51 PDT"]
[Termination "Antipov_Mikhail_Al won on time"]

1. d4 {[%clk 0:03:00.9]} 1... Nf6 {[%clk 0:02:59.6]} 2. Nc3 {[%clk 0:02:58.3]}
2... d5 {[%clk 0:02:58.8]} 3. Bf4 {[%clk 0:02:57.9]} 3... g6 {[%clk 0:02:58.6]}
4. Qd2 {[%clk 0:02:57.6]} 4... Bg7 {[%clk 0:02:57.4]} 5. Bh6 {[%clk 0:02:57.3]}
5... Bxh6 {[%clk 0:02:54.8]} 6. Qxh6 {[%clk 0:02:58.2]} 6... c5 {[%clk
0:02:54.3]} 7. dxc5 {[%clk 0:02:58.9]} 7... Nc6 {[%clk 0:02:40.9]} 8. O-O-O
{[%clk 0:02:58.6]} 8... Qa5 {[%clk 0:02:25.3]} 9. e3 {[%clk 0:02:31]} 9... Bf5
{[%clk 0:02:17.9]} 10. Bd3 {[%clk 0:02:26.1]} 10... Bxd3 {[%clk 0:02:05.1]} 11.
cxd3 {[%clk 0:02:27]} 11... d4 {[%clk 0:02:02.6]} 12. exd4 {[%clk 0:02:23.6]}
12... Nxd4 {[%clk 0:02:03.5]} 13. Kb1 {[%clk 0:02:12.2]} 13... Qxc5 {[%clk
0:01:57.5]} 14. Nge2 {[%clk 0:01:57.2]} 14... Nxe2 {[%clk 0:01:54.4]} 15. Nxe2
{[%clk 0:01:58.1]} 15... Qxf2 {[%clk 0:01:55]} 16. Rhe1 {[%clk 0:01:46.1]} 16...
Ng4 {[%clk 0:01:50.4]} 17. Qg5 {[%clk 0:01:34.6]} 17... Qf5 {[%clk 0:01:39.6]}
0-1

[Event "Early-Titled-Tuesday-Blitz-April-23-2024"]
[Site "Chess.com"]
[Date "2024.04.23"]
[Round "3"]
[White "MIss_MIaMI"]
[Black "SmirnovTimofey2000"]
[Result "1-0"]
[WhiteElo "2355"]
[BlackElo "1981"]
[TimeControl "180+1"]
[EndTime "8:26:53 PDT"]
[Termination "MIss_MIaMI won by resignation"]

1. e4 {[%clk 0:03:00.9]} 1... e5 {[%clk 0:02:59.7]} 2. Nf3 {[%clk 0:03:00.1]}
2... Nf6 {[%clk 0:03:00]} 3. Nxe5 {[%clk 0:02:59.3]} 3... d6 {[%clk 0:02:59.7]}
4. Nf3 {[%clk 0:02:53.2]} 4... Nxe4 {[%clk 0:02:59.9]} 5. Nc3 {[%clk 0:02:50]}
5... Nxc3 {[%clk 0:02:58.5]} 6. dxc3 {[%clk 0:02:50.9]} 6... Be7 {[%clk
0:02:59.3]} 7. Bd3 {[%clk 0:02:51.4]} 7... Nc6 {[%clk 0:02:56.6]} 8. O-O {[%clk
0:02:51.1]} 8... Bg4 {[%clk 0:02:51.5]} 9. Bf4 {[%clk 0:02:46.3]} 9... Ne5
{[%clk 0:02:45]} 10. Bxe5 {[%clk 0:02:40.4]} 10... dxe5 {[%clk 0:02:44.2]} 11.
Re1 {[%clk 0:02:39.8]} 11... O-O {[%clk 0:02:40.2]} 12. Rxe5 {[%clk 0:02:37.6]}
12... Bd6 {[%clk 0:02:22.7]} 13. Rb5 {[%clk 0:02:19.8]} 13... b6 {[%clk
0:02:19.4]} 14. Bxh7+ {[%clk 0:02:02.8]} 14... Kh8 {[%clk 0:01:57.2]} 15. Be4
{[%clk 0:01:58]} 15... Rb8 {[%clk 0:01:54.6]} 16. h3 {[%clk 0:01:50]} 16... a6
{[%clk 0:01:48.8]} 17. Rd5 {[%clk 0:01:41]} 17... f5 {[%clk 0:01:30.4]} 18. hxg4
{[%clk 0:01:33.3]} 18... fxe4 {[%clk 0:01:27.6]} 19. Rh5+ {[%clk 0:01:34.2]}
19... Kg8 {[%clk 0:01:23.6]} 20. Qd5+ {[%clk 0:01:25.4]} 20... Rf7 {[%clk
0:01:20.1]} 21. Qxe4 {[%clk 0:01:25.9]} 21... g6 {[%clk 0:00:46.6]} 22. Qxg6+
{[%clk 0:01:24.2]} 22... Rg7 {[%clk 0:00:46.9]} 23. Qe6+ {[%clk 0:01:24]} 23...
Rf7 {[%clk 0:00:42.9]} 24. Ng5 {[%clk 0:01:22]} 1-0

[Event "Early-Titled-Tuesday-Blitz-April-23-2024"]
[Site "Chess.com"]
[Date "2024.04.23"]
[Round "3"]
[White "Escudito"]
[Black "Djager97"]
[Result "0-1"]
[WhiteElo "2305"]
[BlackElo "2549"]
[TimeControl "180+1"]
[EndTime "8:26:54 PDT"]
[Termination "Djager97 won by resignation"]

1. d4 {[%clk 0:03:00.9]} 1... Nf6 {[%clk 0:02:59.6]} 2. Nf3 {[%clk 0:03:01.1]}
2... d5 {[%clk 0:02:59.6]} 3. c4 {[%clk 0:03:01.4]} 3... e6 {[%clk 0:02:59.4]}
4. Nc3 {[%clk 0:03:00]} 4... c6 {[%clk 0:02:59.4]} 5. e3 {[%clk 0:02:56.2]} 5...
Nbd7 {[%clk 0:02:59.4]} 6. Bd3 {[%clk 0:02:51.3]} 6... Bd6 {[%clk 0:02:59.2]} 7.
O-O {[%clk 0:02:50.5]} 7... dxc4 {[%clk 0:02:58.4]} 8. Bxc4 {[%clk 0:02:50.2]}
8... b5 {[%clk 0:02:59.3]} 9. Bd3 {[%clk 0:02:49.1]} 9... O-O {[%clk 0:02:59.2]}
10. e4 {[%clk 0:02:48.1]} 10... e5 {[%clk 0:02:59.4]} 11. d5 {[%clk 0:02:48]}
11... cxd5 {[%clk 0:02:59]} 12. exd5 {[%clk 0:02:48.7]} 12... a6 {[%clk
0:02:55.3]} 13. Bg5 {[%clk 0:02:46.6]} 13... Bb7 {[%clk 0:02:54]} 14. Ne4 {[%clk
0:02:43.5]} 14... Bb8 {[%clk 0:02:38.5]} 15. Re1 {[%clk 0:02:19.8]} 15... Bxd5
{[%clk 0:02:34.6]} 16. Nxf6+ {[%clk 0:02:16.9]} 16... Nxf6 {[%clk 0:02:34.5]}
17. Bxf6 {[%clk 0:02:16.8]} 17... Qxf6 {[%clk 0:02:35.4]} 18. Bxh7+ {[%clk
0:02:16.9]} 18... Kxh7 {[%clk 0:02:36.3]} 19. Qxd5 {[%clk 0:02:16.9]} 19... Ra7
{[%clk 0:02:07.1]} 20. Nxe5 {[%clk 0:02:05.6]} 20... Rd8 {[%clk 0:02:06.7]} 21.
Qe4+ {[%clk 0:01:57.3]} 21... Kg8 {[%clk 0:02:07]} 22. Nc6 {[%clk 0:01:53.1]}
22... Rd2 {[%clk 0:01:44.6]} 23. Nxb8 {[%clk 0:01:39.2]} 23... Qxf2+ {[%clk
0:01:44.4]} 24. Kh1 {[%clk 0:01:39.2]} 24... Re7 {[%clk 0:01:45.3]} 25. Rf1
{[%clk 0:00:36.2]} 25... Rxe4 {[%clk 0:01:43.2]} 26. Rxf2 {[%clk 0:00:36]} 26...
Rxf2 {[%clk 0:01:44.1]} 27. Nc6 {[%clk 0:00:31.4]} 27... Ree2 {[%clk 0:01:43.8]}
28. Nb4 {[%clk 0:00:27.4]} 28... Rxb2 {[%clk 0:01:41.8]} 29. Nxa6 {[%clk
0:00:27.8]} 29... Rxa2 {[%clk 0:01:41.8]} 0-1

[Event "Early-Titled-Tuesday-Blitz-April-23-2024"]
[Site "Chess.com"]
[Date "2024.04.23"]
[Round "3"]
[White "ChadBiryani"]
[Black "mertfelin"]
[Result "1-0"]
[WhiteElo "2444"]
[BlackElo "2254"]
[TimeControl "180+1"]
[EndTime "8:27:01 PDT"]
[Termination "ChadBiryani won by resignation"]

1. c4 {[%clk 0:03:00.9]} 1... e6 {[%clk 0:03:00.4]} 2. g3 {[%clk 0:03:01]} 2...
d5 {[%clk 0:03:01]} 3. Bg2 {[%clk 0:03:01]} 3... Nf6 {[%clk 0:03:01.7]} 4. Nf3
{[%clk 0:03:01.1]} 4... Be7 {[%clk 0:03:02.2]} 5. O-O {[%clk 0:03:00.5]} 5...
O-O {[%clk 0:03:02.7]} 6. b3 {[%clk 0:03:00.9]} 6... b6 {[%clk 0:03:02.4]} 7.
Bb2 {[%clk 0:02:59.9]} 7... Bb7 {[%clk 0:03:02.9]} 8. d3 {[%clk 0:03:00.1]} 8...
c5 {[%clk 0:03:00.6]} 9. cxd5 {[%clk 0:02:57.7]} 9... Nxd5 {[%clk 0:02:59.1]}
10. Nc3 {[%clk 0:02:57.6]} 10... Nd7 {[%clk 0:02:57.8]} 11. d4 {[%clk
0:02:55.8]} 11... Rc8 {[%clk 0:02:55.3]} 12. Rc1 {[%clk 0:02:55]} 12... Rc7
{[%clk 0:02:54.6]} 13. dxc5 {[%clk 0:02:47.9]} 13... Nxc5 {[%clk 0:02:53.6]} 14.
Nb5 {[%clk 0:02:47.6]} 14... Rd7 {[%clk 0:02:49]} 15. Qc2 {[%clk 0:02:40.3]}
15... a6 {[%clk 0:02:41.1]} 16. Nc3 {[%clk 0:02:33.1]} 16... Nb4 {[%clk
0:02:36.4]} 17. Qb1 {[%clk 0:02:33]} 17... Bf6 {[%clk 0:02:37.1]} 18. a3 {[%clk
0:02:31.6]} 18... Nd5 {[%clk 0:02:32.9]} 19. Nxd5 {[%clk 0:02:28.4]} 19... Bxd5
{[%clk 0:02:29.1]} 20. b4 {[%clk 0:02:28.6]} 20... Nb3 {[%clk 0:02:18.2]} 21.
Bxf6 {[%clk 0:02:23.5]} 21... Qxf6 {[%clk 0:02:10.4]} 22. Rcd1 {[%clk
0:02:21.3]} 22... Rc8 {[%clk 0:01:10.7]} 23. Rxd5 {[%clk 0:02:19.3]} 23... Rxd5
{[%clk 0:01:11.2]} 24. Qxb3 {[%clk 0:02:19.1]} 24... Qc3 {[%clk 0:01:04.8]} 25.
Qa4 {[%clk 0:02:15.3]} 25... a5 {[%clk 0:01:01]} 26. Ne1 {[%clk 0:02:04]} 26...
Re5 {[%clk 0:00:56.1]} 27. Bf3 {[%clk 0:02:00.8]} 27... axb4 {[%clk 0:00:47.1]}
28. Qxb4 {[%clk 0:01:59.3]} 28... Ra5 {[%clk 0:00:42.9]} 29. Qxb6 {[%clk
0:01:54.9]} 29... Rxa3 {[%clk 0:00:41.8]} 30. Nd3 {[%clk 0:01:54.4]} 30... h6
{[%clk 0:00:40.5]} 31. Rc1 {[%clk 0:01:52.4]} 31... Ra1 {[%clk 0:00:41.1]} 32.
Rxa1 {[%clk 0:01:51]} 32... Qxa1+ {[%clk 0:00:41.7]} 33. Kg2 {[%clk 0:01:51.3]}
33... Qf6 {[%clk 0:00:40.8]} 34. Qb7 {[%clk 0:01:48.5]} 34... Rc4 {[%clk
0:00:39.8]} 35. Be4 {[%clk 0:01:45.5]} 35... Rxe4 {[%clk 0:00:36.9]} 36. Qxe4
{[%clk 0:01:45.1]} 1-0

[Event "Early-Titled-Tuesday-Blitz-April-23-2024"]
[Site "Chess.com"]
[Date "2024.04.23"]
[Round "3"]
[White "Daaksboy"]
[Black "MikeSailer"]
[Result "1-0"]
[WhiteElo "2408"]
[BlackElo "2170"]
[TimeControl "180+1"]
[EndTime "8:27:02 PDT"]
[Termination "Daaksboy won by resignation"]

1. d4 {[%clk 0:03:00.9]} 1... d5 {[%clk 0:02:56.4]} 2. c4 {[%clk 0:03:01.2]}
2... c6 {[%clk 0:02:55.4]} 3. Nc3 {[%clk 0:03:01.8]} 3... Nf6 {[%clk 0:02:54.4]}
4. cxd5 {[%clk 0:03:02.4]} 4... cxd5 {[%clk 0:02:54.3]} 5. Bf4 {[%clk
0:03:03.1]} 5... g6 {[%clk 0:02:47.1]} 6. e3 {[%clk 0:03:02.4]} 6... Bg7 {[%clk
0:02:46.2]} 7. Be2 {[%clk 0:02:56.2]} 7... O-O {[%clk 0:02:45.1]} 8. Nf3 {[%clk
0:02:56.7]} 8... b6 {[%clk 0:02:44.2]} 9. O-O {[%clk 0:02:55.7]} 9... Bb7 {[%clk
0:02:44]} 10. Ne5 {[%clk 0:02:55.9]} 10... Nbd7 {[%clk 0:02:40.9]} 11. Qb3
{[%clk 0:02:54.7]} 11... e6 {[%clk 0:02:33.1]} 12. a4 {[%clk 0:02:53.1]} 12...
Ne4 {[%clk 0:02:24.3]} 13. Nxe4 {[%clk 0:02:42.9]} 13... dxe4 {[%clk 0:02:24.2]}
14. Nxd7 {[%clk 0:02:37.1]} 14... Qxd7 {[%clk 0:02:21.4]} 15. a5 {[%clk
0:02:35.3]} 15... Bd5 {[%clk 0:02:20.4]} 16. Qa3 {[%clk 0:02:35.4]} 16... b5
{[%clk 0:02:17]} 17. a6 {[%clk 0:02:31.2]} 17... Rac8 {[%clk 0:02:12.1]} 18. Qb4
{[%clk 0:02:30]} 18... Bc4 {[%clk 0:02:09]} 19. Bxc4 {[%clk 0:02:26.6]} 19...
Rxc4 {[%clk 0:02:06.6]} 20. Qd6 {[%clk 0:02:21.7]} 20... Qc8 {[%clk 0:01:53.4]}
21. h4 {[%clk 0:02:16.5]} 21... Rd8 {[%clk 0:01:50.7]} 22. Qe7 {[%clk
0:02:16.6]} 22... Bf8 {[%clk 0:01:47.1]} 23. Qxa7 {[%clk 0:02:12.9]} 23... Rc2
{[%clk 0:01:29.7]} 24. Qb7 {[%clk 0:02:07.9]} 24... Rxb2 {[%clk 0:01:21.5]} 25.
Qxc8 {[%clk 0:01:59.9]} 25... Rxc8 {[%clk 0:01:21]} 26. a7 {[%clk 0:02:00.8]}
26... Ra8 {[%clk 0:01:20.3]} 27. Rfc1 {[%clk 0:01:47.4]} 27... b4 {[%clk
0:01:06]} 28. Rc6 {[%clk 0:01:46.3]} 28... b3 {[%clk 0:01:03.7]} 29. Rb6 {[%clk
0:01:46.5]} 29... Ra2 {[%clk 0:00:50.9]} 30. Rxa2 {[%clk 0:01:41.7]} 30... bxa2
{[%clk 0:00:49.7]} 31. Ra6 {[%clk 0:01:42]} 1-0

[Event "Early-Titled-Tuesday-Blitz-April-23-2024"]
[Site "Chess.com"]
[Date "2024.04.23"]
[Round "3"]
[White "lucasmito"]
[Black "szachuspl"]
[Result "1-0"]
[WhiteElo "2805"]
[BlackElo "2525"]
[TimeControl "180+1"]
[EndTime "8:27:06 PDT"]
[Termination "lucasmito won by checkmate"]

1. e4 {[%clk 0:03:00.9]} 1... c5 {[%clk 0:02:57]} 2. Nf3 {[%clk 0:03:00.1]} 2...
Nc6 {[%clk 0:02:56.9]} 3. Nc3 {[%clk 0:03:01]} 3... g6 {[%clk 0:02:56.4]} 4. d4
{[%clk 0:03:01.1]} 4... cxd4 {[%clk 0:02:56.5]} 5. Nxd4 {[%clk 0:03:02]} 5...
Bg7 {[%clk 0:02:57.1]} 6. Be3 {[%clk 0:03:02.6]} 6... d6 {[%clk 0:02:57.1]} 7.
f3 {[%clk 0:03:02.5]} 7... Bd7 {[%clk 0:02:57.4]} 8. Qd2 {[%clk 0:03:03.1]} 8...
Nf6 {[%clk 0:02:57.8]} 9. O-O-O {[%clk 0:03:03.7]} 9... O-O {[%clk 0:02:58.1]}
10. Kb1 {[%clk 0:03:03.8]} 10... Qa5 {[%clk 0:02:57.9]} 11. Nb3 {[%clk
0:02:33.2]} 11... Qc7 {[%clk 0:02:55.6]} 12. Bh6 {[%clk 0:02:29.4]} 12... Rfc8
{[%clk 0:02:54.1]} 13. h4 {[%clk 0:02:27.3]} 13... Ne5 {[%clk 0:02:53.5]} 14. h5
{[%clk 0:02:24.9]} 14... Nc4 {[%clk 0:02:50.5]} 15. Bxc4 {[%clk 0:02:23.1]}
15... Qxc4 {[%clk 0:02:50.1]} 16. hxg6 {[%clk 0:02:21.3]} 16... fxg6 {[%clk
0:02:45.3]} 17. Bxg7 {[%clk 0:02:18]} 17... Kxg7 {[%clk 0:02:45.5]} 18. Qh6+
{[%clk 0:02:17.3]} 18... Kg8 {[%clk 0:02:37.4]} 19. e5 {[%clk 0:02:16]} 19...
dxe5 {[%clk 0:02:22.4]} 20. Rxd7 {[%clk 0:01:59.2]} 20... Nxd7 {[%clk
0:02:22.2]} 21. Qxh7+ {[%clk 0:01:59.9]} 21... Kf8 {[%clk 0:02:21.9]} 22. Qxg6
{[%clk 0:01:53.8]} 22... Qg8 {[%clk 0:02:19.4]} 23. Qf5+ {[%clk 0:01:52.9]}
23... Ke8 {[%clk 0:02:11.7]} 24. Rd1 {[%clk 0:01:37.7]} 24... e6 {[%clk
0:02:00.3]} 25. Qh5+ {[%clk 0:01:37.5]} 25... Ke7 {[%clk 0:01:58.6]} 26. Ne4
{[%clk 0:01:34.9]} 26... Rf8 {[%clk 0:01:36.6]} 27. Qh4+ {[%clk 0:01:30.7]}
27... Nf6 {[%clk 0:01:36.3]} 28. Nbc5 {[%clk 0:01:28.2]} 28... Qg6 {[%clk
0:00:27.7]} 29. Rd7+ {[%clk 0:01:23.8]} 29... Ke8 {[%clk 0:00:28.2]} 30. Nd6#
{[%clk 0:01:24.7]} 1-0

[Event "Early-Titled-Tuesday-Blitz-April-23-2024"]
[Site "Chess.com"]
[Date "2024.04.23"]
[Round "3"]
[White "JoliyRoger"]
[Black "martinmena"]
[Result "1-0"]
[WhiteElo "2415"]
[BlackElo "2200"]
[TimeControl "180+1"]
[EndTime "8:27:08 PDT"]
[Termination "JoliyRoger won by resignation"]

1. d4 {[%clk 0:02:55]} 1... d5 {[%clk 0:02:50.6]} 2. c4 {[%clk 0:02:54.7]} 2...
e6 {[%clk 0:02:45]} 3. Nc3 {[%clk 0:02:53.6]} 3... Nf6 {[%clk 0:02:44.9]} 4. e3
{[%clk 0:02:52.9]} 4... Be7 {[%clk 0:02:44.4]} 5. Nf3 {[%clk 0:02:52.6]} 5...
O-O {[%clk 0:02:44.9]} 6. b3 {[%clk 0:02:52.7]} 6... b6 {[%clk 0:02:40.8]} 7.
Bb2 {[%clk 0:02:52.5]} 7... Bb7 {[%clk 0:02:40.3]} 8. Bd3 {[%clk 0:02:52.7]}
8... c5 {[%clk 0:02:39.1]} 9. cxd5 {[%clk 0:02:51.1]} 9... Nxd5 {[%clk
0:02:34.1]} 10. O-O {[%clk 0:02:50]} 10... cxd4 {[%clk 0:02:32.5]} 11. Nxd4
{[%clk 0:02:49.1]} 11... Bf6 {[%clk 0:02:30.1]} 12. Ne4 {[%clk 0:02:43.8]} 12...
Be5 {[%clk 0:01:51.6]} 13. Qh5 {[%clk 0:02:34.1]} 13... Bf6 {[%clk 0:00:53.3]}
14. Nd6 {[%clk 0:02:00.7]} 14... g6 {[%clk 0:00:40.7]} 15. Nxb7 {[%clk
0:01:59.5]} 15... Qe7 {[%clk 0:00:19.4]} 16. Qf3 {[%clk 0:01:56.8]} 16... Qxb7
{[%clk 0:00:19.4]} 17. e4 {[%clk 0:01:57.4]} 17... Nb4 {[%clk 0:00:13.1]} 18.
Qxf6 {[%clk 0:01:49.6]} 18... Nxd3 {[%clk 0:00:12.8]} 19. Nxe6 {[%clk 0:01:46]}
19... fxe6 {[%clk 0:00:09.9]} 20. Qh8+ {[%clk 0:01:45.3]} 20... Kf7 {[%clk
0:00:09.3]} 21. Qxh7+ {[%clk 0:01:46.1]} 21... Ke8 {[%clk 0:00:08.8]} 22. Qxb7
{[%clk 0:01:46.2]} 22... Nxb2 {[%clk 0:00:05.4]} 23. Qxa8 {[%clk 0:01:45.6]}
23... Kf7 {[%clk 0:00:06]} 24. Rac1 {[%clk 0:01:45]} 24... Rg8 {[%clk
0:00:06.9]} 1-0